bitfinex-derivatives/quotes_ETHF0:USTF0_20241231
["timestamp","ask_amount","ask_price","bid_price","bid_amount"]
[1735621544148,0.8867,3341.8,3341.4,4.9515935]
[1735621544149,5.17190703,3341.8,3341.4,4.7110285]
[1735621544350,1.07740703,3341.6,3341.3,4.7110285]
[1735621544546,3.2078,3341.4,3341.3,5.78843553]
[1735621544746,0.8405,3341.7,3341.4,0.29976]
[1735621544958,0.8405,3341.7,3341.6,1.07740703]
[1735621545451,0.8405,3341.7,3341.6,1.37715703]
[1735621545653,0.8867,3341.8,3341.7,0.29974]
[1735621545841,0.8867,3341.8,3341.6,1.07740703]
[1735621546850,0.29975,3341.7,3341.5,1.189]
[1735621547057,0.8447,3341.6,3341.5,2.26640703]
[1735621548255,1.14445,3341.6,3341.5,2.26640703]
[1735621548753,0.8447,3341.6,3341.5,2.26640703]
[1735621551854,0.8447,3341.6,3341.5,43.06640703]
[1735621553359,4.36265185,3341.6,3341.5,43.06640703]
[1735621554954,3.51795185,3341.6,3341.5,43.36616703]
[1735621559463,2.34453243,3341.6,3341.5,43.36616703]
[1735621560357,2.34453243,3341.6,3341.5,43.06640703]
[1735621560560,3.53096243,3341.8,3341.5,1.189]
[1735621560753,0.8674,3341.6,3341.5,2.26640703]
[1735621561758,1.16715,3341.6,3341.5,1.189]
[1735621561957,1.16715,3341.6,3341.3,41.87740703]
[1735621562157,0.8674,3341.6,3341.3,41.87740703]
[1735621562359,0.29976,3341.5,3341.3,41.87740703]
[1735621562858,0.8039,3341.4,3341.3,41.87740703]
[1735621563056,0.29979,3341.2,3340.8,4.7110285]
[1735621563248,1.16769,3341.1,3340.9,1.07740703]
[1735621563449,1.16769,3341.1,3341.0,40.8]
[1735621564055,3.51222243,3341.1,3341.0,40.8]
[1735621564257,3.21243243,3341.1,3340.9,1.07740703]
[1735621564652,3.21243243,3341.1,3340.9,41.87740703]
[1735621565456,3.21243243,3341.1,3340.9,40.8]
[1735621565457,2.64433243,3341.0,3340.9,40.8]
[1735621565957,2.34453243,3341.0,3340.9,40.8]
[1735621567853,2.34453243,3341.0,3340.9,41.661]
[1735621568262,2.34453243,3341.0,3340.9,41.96081]
[1735621568462,2.34453243,3341.0,3340.9,41.661]
[1735621568663,2.34453243,3341.0,3340.9,40.8]
[1735621569756,3.21243243,3341.1,3340.9,40.8]
[1735621569950,3.21243243,3341.1,3341.0,1.07740703]
[1735621570150,2.34453243,3341.1,3341.0,1.37720703]
[1735621570359,2.34453243,3341.1,3341.0,2.24700703]
[1735621572159,4.32125185,3341.3,3341.0,2.24700703]
[1735621572160,2.34453243,3341.2,3341.0,2.24700703]
[1735621572361,2.34453243,3341.2,3341.1,1.87390703]
[1735621572968,2.34453243,3341.2,3341.1,2.17369703]
[1735621574257,2.34453243,3341.2,3341.1,3.37092697]
[1735621574460,3.2078,3341.5,3341.1,15.12619479]
[1735621574659,3.2078,3341.5,3341.4,2.57439697]
[1735621574862,2.34453243,3341.6,3341.4,6.67043697]
[1735621575062,2.34453243,3341.6,3341.5,1.17146]
[1735621575262,2.34453243,3341.6,3341.5,2.00626]
[1735621575556,3.51795185,3341.6,3341.5,2.00626]
[1735621580967,2.34643016,3341.7,3341.6,0.29974]
[1735621581168,2.34643016,3341.7,3341.6,3.41077697]
[1735621583270,2.34643016,3341.7,3341.6,3.11103697]
[1735621583967,0.8165,3341.9,3341.6,3.11103697]
[1735621584967,1.11623,3341.9,3341.6,3.11103697]
[1735621585173,0.8165,3341.9,3341.6,2.27463697]
[1735621585368,0.29975,3341.6,3341.5,5.89868552]
[1735621585763,0.29975,3341.6,3341.5,4.71068552]
[1735621586266,0.29975,3341.6,3341.5,0.46998553]
[1735621586568,0.29975,3341.6,3341.4,7.07268738]
[1735621586569,0.29977,3341.3,3341.2,0.46998553]
[1735621586768,3.50757,3341.3,3341.2,0.46998553]
[1735621587774,3.50757,3341.3,3340.8,40.8]
[1735621587775,0.2998,3341.0,3340.8,40.8]
[1735621588164,3.50761,3340.9,3340.8,40.8]
[1735621588467,3.2078,3340.9,3340.4,10.28048738]
[1735621588868,0.29984,3340.6,3340.4,10.28048738]
[1735621589072,0.29984,3340.6,3340.5,40.8]
[1735621589672,1.7369,3340.8,3340.5,40.8]
[1735621589873,2.03672,3340.8,3340.5,40.8]
[1735621590176,1.7369,3340.8,3340.7,2.27463697]
[1735621590775,6.43328092,3340.8,3340.7,2.27463697]
[1735621591077,6.43328092,3340.8,3340.7,43.07463697]
[1735621591976,5.25317726,3340.8,3340.7,43.07463697]
[1735621593473,3.51627726,3340.8,3340.7,43.07463697]
[1735621595377,3.51627726,3340.9,3340.7,43.07463697]
[1735621596574,3.51627726,3340.9,3340.7,43.37445697]
[1735621596779,3.51627726,3340.9,3340.8,0.29982]
[1735621597476,3.51627726,3340.9,3340.8,41.09982]
[1735621597775,3.98860308,3341.2,3340.9,0.2998]
[1735621597977,3.98860308,3341.2,3341.0,4.33023697]
[1735621598382,2.34350308,3341.2,3341.0,4.33023697]
[1735621598779,3.2078,3341.3,3341.0,4.33023697]
[1735621599375,2.34350308,3341.4,3341.0,4.33023697]
[1735621599581,2.34350308,3341.4,3341.3,2.27463697]
[1735621601581,3.17420308,3341.5,3341.3,2.27463697]
[1735621604677,2.34350308,3341.5,3341.3,2.27463697]
[1735621604881,2.34350308,3341.5,3341.4,0.29976]
[1735621605586,2.34350308,3341.6,3341.5,0.29976]
[1735621605982,2.34350308,3341.6,3341.4,0.29976]
[1735621607686,2.34350308,3341.6,3341.5,0.29976]
[1735621608285,4.34467726,3341.7,3341.5,0.29976]
[1735621608478,4.34467726,3341.7,3341.3,2.27463697]
[1735621608683,4.34467726,3341.7,3341.4,0.29976]
[1735621608983,4.34467726,3341.7,3341.5,0.29976]
[1735621609181,4.34467726,3341.7,3341.4,0.29976]
[1735621610288,2.34378233,3341.5,3341.4,0.29976]
[1735621613285,2.34378233,3341.5,3341.3,2.27463697]
[1735621613481,0.811,3341.4,3341.3,2.27463697]
[1735621613687,1.11076,3341.4,3341.3,3.46263697]
[1735621613888,1.11076,3341.4,3341.3,2.27463697]
[1735621614077,1.11076,3341.4,3340.9,7.07268738]
[1735621614078,0.811,3341.4,3341.0,2.27463697]
[1735621614279,0.816,3341.3,3340.9,7.07268738]
[1735621614487,0.2998,3341.0,3340.9,7.07268738]
[1735621615488,3.20778233,3341.1,3340.8,9.39947835]
[1735621615791,0.29983,3340.7,3340.3,3.96903697]
[1735621616088,1.6537,3340.6,3340.5,40.8]
[1735621616690,3.2078,3340.7,3340.5,40.8]
[1735621616890,3.2078,3340.7,3340.6,2.27463697]
[1735621617488,5.55158233,3340.7,3340.6,2.57447697]
[1735621617687,5.55158233,3340.7,3340.6,3.39917697]
[1735621618290,5.55158233,3340.7,3340.6,44.19917697]
[1735621618691,3.2078,3340.7,3340.6,44.19917697]
[1735621621497,3.2078,3340.7,3340.6,44.56247697]
[1735621622696,7.51226233,3341.3,3340.7,0.29982]
[1735621622890,0.29978,3341.2,3340.7,0.29982]
[1735621623495,7.51226233,3341.3,3340.9,2.27463697]
[1735621624393,0.29979,3341.2,3340.9,2.27463697]
[1735621625494,2.64357233,3341.2,3340.9,2.27463697]
[1735621625698,5.85137233,3341.2,3340.9,2.27463697]
[1735621626001,5.55158233,3341.2,3340.9,2.27463697]
[1735621627494,5.55158233,3341.2,3340.9,3.46263697]
[1735621627899,3.2078,3341.2,3340.9,3.46263697]
[1735621628198,4.30445233,3341.3,3341.2,0.29978]
[1735621628199,2.34378233,3341.3,3341.2,0.29978]
[1735621630297,2.34378233,3341.3,3341.0,5.07273697]
[1735621630603,3.53074233,3341.5,3341.0,5.07273697]
[1735621630802,3.53074233,3341.5,3341.3,2.27463697]
[1735621630803,3.23098233,3341.5,3341.3,2.27463697]
[1735621631702,4.40347726,3341.5,3341.3,2.27463697]
[1735621632904,4.70323726,3341.5,3341.3,2.27463697]
[1735621633494,0.29977,3341.3,3341.2,1.188]
[1735621633698,0.29977,3341.3,3341.0,2.27463697]
[1735621633699,7.61127726,3341.5,3341.0,2.27463697]
[1735621633895,0.29979,3341.1,3341.0,2.27463697]
[1735621634097,3.2078,3341.1,3340.6,7.07268738]
[1735621634303,3.2078,3341.1,3340.4,9.39947835]
[1735621634304,0.29982,3340.8,3340.5,1.188]
[1735621634499,0.8126,3340.7,3340.6,2.27463697]
[1735621634700,1.6385,3340.7,3340.6,2.27463697]
[1735621635602,1.6385,3340.7,3340.5,1.188]
[1735621635603,5.15477726,3340.7,3340.5,1.188]
[1735621635801,5.15477726,3340.7,3340.5,3.46263697]
[1735621637102,1.6385,3340.7,3340.5,3.46263697]
[1735621639098,1.93833,3340.7,3340.5,3.46263697]
[1735621639910,1.93833,3340.7,3340.6,40.8]
[1735621640810,4.28279264,3340.7,3340.6,40.8]
[1735621641011,3.98296264,3340.7,3340.6,40.8]
[1735621641804,1.6385,3340.7,3340.6,40.8]
[1735621643312,1.93833,3340.7,3340.6,40.8]
[1735621644308,5.45460726,3340.7,3340.6,40.8]
[1735621644507,5.15477726,3340.7,3340.6,40.8]
[1735621645210,5.45460726,3340.7,3340.6,40.8]
[1735621645411,1.93833,3340.7,3340.6,40.8]
[1735621646720,5.15477726,3340.7,3340.6,40.8]
[1735621648325,1.6385,3340.7,3340.6,40.8]
[1735621649128,1.93833,3340.7,3340.6,40.8]
[1735621649323,4.28218126,3340.7,3340.6,40.8]
[1735621650025,3.98235126,3340.7,3340.6,40.8]
[1735621650529,1.6385,3340.7,3340.6,40.8]
[1735621653824,1.93833,3340.7,3340.6,40.8]
[1735621655634,0.29983,3340.7,3340.6,42.5134]
[1735621657434,2.34385126,3340.9,3340.6,42.5134]
[1735621657626,0.29982,3340.8,3340.6,42.5134]
[1735621658428,2.64367126,3340.8,3340.6,42.5134]
[1735621658623,2.34385126,3340.8,3340.6,42.5134]
[1735621658824,0.29983,3340.7,3340.6,42.5134]
[1735621660823,2.64368126,3340.7,3340.6,42.5134]
[1735621662033,0.29983,3340.7,3340.6,42.5134]
[1735621662431,2.64367126,3340.8,3340.6,42.5134]
[1735621665738,4.69638092,3340.7,3340.6,42.5134]
[1735621666340,4.69638092,3340.7,3340.6,43.89022669]
[1735621666945,4.69638092,3340.8,3340.7,0.29983]
[1735621668243,4.69638092,3340.8,3340.7,2.57500991]
[1735621668436,2.34706107,3340.8,3340.7,2.27517991]
[1735621668743,2.34706107,3340.8,3340.7,2.57500991]
[1735621670844,3.5205916,3340.9,3340.7,2.57500991]
[1735621671346,3.5205916,3340.9,3340.8,0.8588]
[1735621674151,2.34755171,3341.0,3340.8,0.8588]
[1735621674352,0.29981,3340.9,3340.8,0.8588]
[1735621674654,1.15511,3340.9,3340.8,0.8588]
[1735621675549,1.15511,3340.9,3340.7,2.27517991]
[1735621675550,4.3758916,3340.9,3340.7,3.46317991]
[1735621675755,0.29982,3340.8,3340.7,3.46317991]
[1735621676759,0.29982,3340.8,3340.7,2.27517991]
[1735621677160,3.8204116,3340.8,3340.7,2.27517991]
[1735621678561,3.5205916,3340.8,3340.7,2.27517991]
[1735621679363,3.8204116,3340.8,3340.7,2.27517991]
[1735621679958,0.29982,3340.8,3340.7,2.27517991]
[1735621680263,5.55168092,3340.9,3340.7,2.27517991]
[1735621680451,3.2078,3340.8,3340.7,2.27517991]
[1735621680656,3.50762,3340.8,3340.7,2.27517991]
[1735621681161,3.50762,3340.8,3340.6,40.8]
[1735621682164,4.70244266,3340.7,3340.6,40.8]
[1735621685363,4.70244266,3340.8,3340.6,40.8]
[1735621685665,4.70244266,3340.8,3340.7,4.21940991]
[1735621686168,4.70244266,3340.8,3340.7,3.91957991]
[1735621686667,3.52736925,3340.8,3340.7,3.91957991]
[1735621687764,4.70244266,3340.9,3340.7,4.21940991]
[1735621689063,3.52834963,3340.9,3340.7,4.21940991]
[1735621689462,3.52834963,3340.9,3340.7,3.91957991]
[1735621689664,3.82815963,3340.9,3340.7,3.91957991]
[1735621689861,3.82815963,3340.9,3340.6,47.87268738]
[1735621689862,3.52834963,3340.9,3340.6,47.87268738]
[1735621690061,3.82815963,3340.9,3340.6,47.87268738]
[1735621690364,3.82816963,3340.8,3340.7,1.07735987]
[1735621690769,3.52834963,3340.8,3340.7,1.07735987]
[1735621691662,5.52534266,3341.0,3340.7,1.07735987]
[1735621691663,4.70244266,3340.9,3340.7,1.07735987]
[1735621692070,4.70244266,3340.9,3340.7,1.37717987]
[1735621692466,4.70244266,3340.9,3340.8,0.8716]
[1735621692874,4.70244266,3340.9,3340.8,1.7476]
[1735621693068,4.70244266,3341.0,3340.8,1.7476]
[1735621693268,4.70244266,3341.0,3340.9,2.45452974]
[1735621693470,4.70244266,3341.0,3340.9,3.33752974]
[1735621694170,4.70244266,3341.0,3340.9,14.99958768]
[1735621694171,2.35265696,3341.0,3340.9,14.99958768]
[1735621694371,2.35265696,3341.0,3340.9,14.22203781]
[1735621695473,2.35265696,3341.0,3340.9,15.29939768]
[1735621696167,2.35265696,3341.0,3340.9,14.22203781]
[1735621696576,7.91024266,3341.1,3340.9,1.96035987]
[1735621696777,7.91024266,3341.1,3341.0,0.2998]
[1735621697275,4.70244266,3341.1,3341.0,0.2998]
[1735621697477,4.70244266,3341.1,3340.9,1.96035987]
[1735621697675,4.70244266,3341.1,3340.9,2.26015987]
[1735621698170,4.70244266,3341.2,3340.9,2.26015987]
[1735621698375,4.70244266,3341.2,3341.1,1.07735987]
[1735621703181,3.52711536,3341.3,3341.1,1.07735987]
[1735621703980,3.52711536,3341.3,3341.1,1.37714987]
[1735621704175,3.52711536,3341.3,3341.2,1.48678]
[1735621705083,3.52711536,3341.3,3341.2,42.28678]
[1735621706180,7.91024266,3341.5,3341.4,0.29976]
[1735621706181,2.35117632,3341.5,3341.4,0.29976]
[1735621707082,2.35117632,3341.5,3341.4,0.8113]
[1735621708382,2.35117632,3341.5,3341.4,1.11106]
[1735621709185,2.35117632,3341.5,3341.4,0.8113]
[1735621710282,3.52711536,3341.5,3341.4,0.8113]
[1735621710487,3.52711536,3341.5,3341.4,1.11106]
[1735621710982,3.52711536,3341.5,3341.4,0.8113]
[1735621711682,3.52711536,3341.5,3341.4,1.11106]
[1735621711882,4.70244266,3341.7,3341.5,0.29976]
[1735621711883,2.34961448,3341.6,3341.5,0.29976]
[1735621712187,2.34961448,3341.6,3341.5,2.57423236]
[1735621713683,2.34961448,3341.9,3341.5,6.9868714]
[1735621713882,2.34961448,3341.9,3341.8,2.57420236]
[1735621715389,2.34961448,3342.2,3341.9,0.29971]
[1735621715591,2.34961448,3342.2,3342.1,2.27447236]
[1735621716591,3.21961448,3342.3,3342.1,2.27447236]
[1735621718196,3.21961448,3342.3,3342.1,2.57417236]
[1735621718907,2.34961448,3342.2,3342.1,2.57417236]
[1735621720100,3.21961448,3342.3,3342.1,2.57417236]
[1735621722503,3.21961448,3342.3,3342.2,0.29969]
[1735621723703,3.21961448,3342.3,3342.1,2.57417236]
[1735621724501,3.21961448,3342.3,3342.0,2.33781]
[1735621724698,3.21961448,3342.3,3341.6,3.2078]
[1735621724902,3.21961448,3342.3,3341.6,4.3938]
[1735621725103,3.2078,3341.8,3341.4,2.27447236]
[1735621725299,3.2078,3341.8,3341.3,4.71239904]
[1735621725300,0.29975,3341.6,3341.3,4.71239904]
[1735621725500,0.29976,3341.5,3341.3,4.71239904]
[1735621726507,2.5308,3341.7,3341.3,4.71239904]
[1735621726711,2.64936448,3341.6,3341.1,44.56026236]
[1735621727206,0.29981,3341.0,3340.7,3.2078]
[1735621727411,2.5912,3340.9,3340.6,4.71239904]
[1735621727803,2.5912,3340.9,3340.7,40.8]
[1735621732712,2.5912,3340.9,3340.6,2.57431236]
[1735621733104,2.5912,3340.9,3340.6,43.07447236]
[1735621734112,2.34961448,3340.8,3340.6,43.07447236]
[1735621734608,2.34961448,3340.8,3340.6,43.37431236]
[1735621736309,2.34961448,3340.8,3340.6,43.07447236]
[1735621738415,2.34961448,3340.8,3340.7,0.29983]
[1735621739313,2.34961448,3340.8,3340.6,43.07447236]
[1735621739712,5.24062448,3340.9,3340.6,43.07447236]
[1735621740506,4.94081448,3340.9,3340.6,43.07447236]
[1735621741417,2.89101,3340.9,3340.6,43.07447236]
[1735621742216,2.5912,3340.9,3340.6,43.07447236]
[1735621744315,2.89101,3340.9,3340.6,43.07447236]
[1735621745513,2.5912,3340.9,3340.6,44.22111236]
[1735621745711,2.5912,3340.9,3340.7,0.29982]
[1735621746218,2.5912,3340.9,3340.7,0.8736]
[1735621746619,2.5912,3340.9,3340.7,1.17343]
[1735621747321,2.5912,3340.9,3340.7,0.8736]
[1735621747518,0.29982,3340.9,3340.7,0.8736]
[1735621747820,2.95922,3340.9,3340.7,0.8736]
[1735621748321,2.95922,3340.9,3340.8,1.07732354]
[1735621748523,2.6594,3340.9,3340.8,1.07732354]
[1735621749824,0.29985,3340.5,3340.1,0.29988]
[1735621750022,3.2078,3340.5,3340.2,1.07732354]
[1735621750219,2.90576,3340.4,3340.2,1.07732354]
[1735621750525,2.6059,3340.4,3340.1,0.8669]
[1735621750718,2.90576,3340.4,3340.2,1.07732354]
[1735621750918,2.6059,3340.4,3340.1,0.8669]
[1735621751121,2.90576,3340.4,3340.1,0.8669]
[1735621751321,2.90576,3340.4,3340.2,1.07732354]
[1735621751322,2.6059,3340.4,3340.2,1.07732354]
[1735621751520,2.6059,3340.4,3340.3,0.29986]
[1735621751521,0.8612,3340.4,3340.3,0.29986]
[1735621752728,3.2078,3340.5,3340.3,0.29986]
[1735621752922,3.2078,3340.5,3340.2,1.7064]
[1735621753122,2.34961448,3340.7,3340.4,2.27634711]
[1735621753327,2.34961448,3340.7,3340.6,0.29984]
[1735621753832,3.50762,3340.9,3340.6,0.29984]
[1735621754226,3.50762,3340.9,3340.7,0.8415]
[1735621754730,0.29982,3340.8,3340.7,0.8415]
[1735621755930,0.29985,3340.5,3340.2,1.7064]
[1735621756125,0.29985,3340.5,3340.2,2.88857]
[1735621756528,0.29985,3340.5,3340.2,2.5887]
[1735621756728,0.29985,3340.5,3340.2,2.88857]
[1735621756925,1.7168,3340.6,3340.2,2.5887]
[1735621757133,3.2078,3340.4,3339.6,5.48414711]
[1735621757332,3.50769,3340.0,3339.7,0.29992]
[1735621757628,3.2078,3340.0,3339.8,40.8]
[1735621758133,3.2078,3340.0,3339.9,3.14624711]
[1735621760227,1.13798,3340.2,3339.9,3.14624711]
[1735621760436,0.8381,3340.2,3340.0,0.8242]
[1735621760935,0.8381,3340.2,3340.0,1.7101]
[1735621761437,2.34961448,3340.3,3340.2,0.29987]
[1735621762338,3.2078,3340.4,3340.3,0.29986]
[1735621766231,3.2078,3340.4,3340.0,1.7101]
[1735621766432,3.2078,3340.4,3340.2,0.29987]
[1735621766433,3.50766,3340.4,3340.2,0.29987]
[1735621767035,3.2078,3340.4,3340.0,1.7101]
[1735621767429,3.2078,3340.4,3340.2,0.29987]
[1735621767633,3.50766,3340.4,3340.2,0.29987]
[1735621768432,3.50766,3340.4,3340.0,1.7101]
[1735621768433,3.2078,3340.4,3340.0,1.7101]
[1735621768636,0.29989,3340.1,3339.9,2.3568]
[1735621768833,0.29989,3340.0,3339.9,2.0569]
[1735621769139,0.8261,3340.0,3339.9,2.3568]
[1735621769838,0.8261,3340.0,3339.9,2.0569]
[1735621770630,0.8261,3340.0,3339.9,0.8699]
[1735621770941,1.12599,3340.0,3339.9,0.8699]
[1735621771439,3.47560448,3340.0,3339.9,0.8699]
[1735621771845,0.2999,3339.9,3339.8,40.8]
[1735621772031,0.29991,3339.8,3339.7,0.866]
[1735621773038,2.64952448,3339.8,3339.7,0.866]
[1735621773435,2.34961448,3339.8,3339.7,0.866]
[1735621774036,2.64952448,3339.8,3339.7,0.866]
[1735621774341,0.29991,3339.8,3339.7,0.866]
[1735621774741,2.64951448,3339.9,3339.7,0.866]
[1735621775838,2.34961448,3339.9,3339.7,0.866]
[1735621776244,2.34961448,3339.9,3339.7,1.16592]
[1735621776845,2.34961448,3339.9,3339.7,0.866]
[1735621777241,2.34961448,3339.9,3339.7,1.16592]
[1735621777746,2.34961448,3339.9,3339.7,0.866]
[1735621778245,6.68341448,3340.0,3339.7,0.866]
[1735621779243,0.2999,3339.9,3339.7,0.866]
[1735621779543,6.68340448,3340.0,3339.7,0.866]
[1735621779740,6.38351448,3340.0,3339.7,0.866]
[1735621780046,5.55741448,3340.0,3339.8,0.29991]
[1735621780435,5.55741448,3340.0,3339.9,0.2999]
[1735621781045,3.2078,3340.0,3339.9,0.2999]
[1735621781747,2.34961448,3340.1,3339.9,0.2999]
[1735621781944,2.34961448,3340.1,3339.8,0.2999]
[1735621782160,2.64949448,3340.1,3339.7,0.866]
[1735621782349,0.29988,3340.1,3339.7,1.16591]
[1735621783547,2.64949448,3340.2,3339.7,1.16591]
[1735621783749,2.34961448,3340.1,3339.7,1.16591]
[1735621785154,2.64950448,3340.1,3339.7,1.16591]
[1735621785556,2.64950448,3340.1,3339.8,1.186]
[1735621785949,2.64950448,3340.1,3339.8,41.986]
[1735621786651,2.34961448,3340.1,3339.8,42.28591]
[1735621787153,4.84047615,3340.6,3340.5,0.29985]
[1735621787349,8.15604626,3341.3,3340.9,0.2998]
[1735621787551,8.15604626,3341.3,3341.0,2.57614711]
[1735621787753,5.70221671,3341.4,3341.3,0.29977]
[1735621788149,5.70221671,3341.4,3341.3,2.57611711]
[1735621788457,5.70221671,3341.4,3341.3,43.37611711]
[1735621789051,5.70221671,3341.4,3341.3,48.08851615]
[1735621789355,4.0274,3341.6,3341.3,48.08851615]
[1735621791052,4.0274,3341.6,3341.3,47.78874615]
[1735621791349,4.0274,3341.6,3341.3,43.07634711]
[1735621791557,4.0274,3341.6,3341.4,0.29976]
[1735621793146,4.0274,3341.6,3341.5,0.29976]
[1735621793749,3.2078,3341.6,3341.5,0.29976]
[1735621794158,0.8276,3342.0,3341.4,3.2078]
[1735621794354,0.8276,3342.0,3341.9,2.57606711]
[1735621794551,0.8276,3342.0,3341.9,3.76206711]
[1735621808575,0.8276,3342.0,3341.9,3.46234711]
[1735621809870,0.8276,3342.0,3341.9,3.76206711]
[1735621812573,0.8276,3342.0,3341.9,3.46234711]
[1735621813775,0.8276,3342.0,3341.9,3.76206711]
[1735621814068,0.8276,3342.0,3341.9,3.46234711]
[1735621816077,0.8276,3342.0,3341.9,3.76206711]
[1735621816872,0.8276,3342.0,3341.9,44.56206711]
[1735621820178,0.8276,3342.0,3341.9,43.07634711]
[1735621820385,0.8276,3342.0,3341.9,44.56106711]
[1735621832590,0.8276,3342.0,3341.9,49.27346615]
[1735621833886,0.8276,3342.0,3341.9,50.02325277]
[1735621834391,0.8276,3342.0,3341.9,49.89954402]
[1735621835390,0.8276,3342.0,3341.9,59.29902237]
[1735621835794,0.8276,3342.0,3341.9,58.22270319]
[1735621837290,0.8276,3342.0,3341.9,69.16017486]
[1735621839596,0.8276,3342.0,3341.9,59.76069651]
[1735621839797,0.8276,3342.0,3341.9,60.83701569]
[1735621840791,0.8276,3342.0,3341.9,72.58636362]
[1735621844696,0.8276,3342.0,3341.9,71.51004444]
[1735621853708,0.8276,3342.0,3341.9,59.76069651]
[1735621856108,0.8276,3342.0,3341.9,58.38465733]
[1735621856309,0.8276,3342.0,3341.9,57.19965733]
[1735621856513,0.8276,3342.0,3341.9,16.39965733]
[1735621856806,0.8276,3342.0,3341.9,17.47597651]
[1735621857114,0.8276,3342.0,3341.9,58.27597651]
[1735621857324,0.8276,3342.0,3341.9,17.47597651]
[1735621857524,0.8276,3342.0,3341.9,17.77569651]
[1735621857726,0.8276,3342.0,3341.9,58.57569651]
[1735621857923,0.8276,3342.0,3341.9,47.63822484]
[1735621859228,4.36060409,3342.0,3341.9,54.71745443]
[1735621860326,4.36060409,3342.0,3341.9,54.41773443]
[1735621861426,4.36060409,3342.0,3341.9,13.61773443]
[1735621861828,4.36060409,3342.0,3341.9,5.79394883]
[1735621861829,0.8276,3342.0,3341.9,5.79394883]
[1735621863336,0.8276,3342.0,3341.9,6.09366883]
[1735621864336,4.35954602,3342.0,3341.9,5.79394883]
[1735621865927,4.35954602,3342.0,3341.9,6.09366883]
[1735621868427,4.35954602,3342.0,3341.9,4.71762965]
[1735621868629,4.65925602,3342.0,3341.9,4.71762965]
[1735621869032,0.29972,3341.9,3341.8,4.71762965]
[1735621870433,3.83166602,3341.9,3341.7,4.71762965]
[1735621870628,4.1069,3341.8,3341.7,4.71762965]
[1735621871032,4.40663,3341.8,3341.7,4.71762965]
[1735621872232,4.40663,3341.8,3341.7,1.99302965]
[1735621872436,0.29975,3341.6,3341.5,7.07922959]
[1735621872641,1.37606918,3341.6,3341.5,5.71702959]
[1735621873431,0.29978,3341.3,3341.1,3.2078]
[1735621873633,0.29978,3341.3,3341.1,3.50759]
[1735621873934,0.29978,3341.3,3341.0,40.8]
[1735621873935,0.29979,3341.1,3341.0,40.8]
[1735621874536,0.2998,3341.0,3340.9,9.43897279]
[1735621875043,0.29981,3340.9,3340.7,41.87631918]
[1735621875243,0.873,3340.9,3340.6,1.185]
[1735621875439,0.29983,3340.7,3340.6,1.185]
[1735621876034,0.29985,3340.5,3340.4,9.43897279]
[1735621876239,3.2078,3340.7,3340.4,9.43897279]
[1735621876435,0.29984,3340.6,3340.5,1.07631918]
[1735621877247,3.2078,3340.7,3340.5,1.07631918]
[1735621877547,4.602597,3341.0,3340.5,1.07631918]
[1735621877548,3.52627782,3341.0,3340.9,0.29981]
[1735621877745,5.83968843,3341.3,3341.2,0.29978]
[1735621878443,5.83968843,3341.3,3341.2,1.20798]
[1735621878641,3.50757,3341.4,3341.2,1.20798]
[1735621879145,3.2078,3341.4,3341.2,0.9082]
[1735621879337,0.29977,3341.3,3341.2,0.9082]
[1735621879541,0.29977,3341.3,3341.1,1.37610918]
[1735621879542,0.29977,3341.3,3341.0,0.2998]
[1735621880046,0.29977,3341.3,3341.1,1.37610918]
[1735621880251,0.29977,3341.3,3341.1,0.29979]
[1735621880640,0.29977,3341.3,3341.0,0.2998]
[1735621881041,3.2078,3341.4,3340.9,0.8852]
[1735621881242,3.50757,3341.4,3341.1,0.29978]
[1735621881746,0.29977,3341.3,3341.1,0.29978]
[1735621882137,0.29977,3341.3,3341.0,40.8]
[1735621882338,0.29979,3341.2,3341.0,40.8]
[1735621882943,0.29979,3341.2,3340.9,0.8852]
[1735621883339,0.29979,3341.2,3341.0,0.2998]
[1735621883846,3.2078,3341.4,3341.0,0.2998]
[1735621884147,3.2078,3341.4,3340.9,41.6852]
[1735621884148,3.2078,3341.4,3341.1,0.29979]
[1735621884343,3.2078,3341.4,3341.0,0.2998]
[1735621884647,0.29978,3341.3,3341.0,0.2998]
[1735621884844,0.29978,3341.3,3341.1,0.29979]
[1735621885553,0.29978,3341.3,3340.9,41.6852]
[1735621885751,0.29978,3341.3,3341.0,0.2998]
[1735621886752,0.29979,3341.2,3340.9,41.98501]
[1735621887153,3.2078,3341.4,3340.9,41.6852]
[1735621887454,0.2998,3341.0,3340.9,41.6852]
[1735621887750,0.2998,3341.0,3340.9,0.8852]
[1735621892955,1.1246,3341.0,3340.9,0.8852]
[1735621893154,0.29982,3340.8,3340.7,41.6564]
[1735621893356,0.29982,3340.8,3340.3,0.29986]
[1735621893357,1.7322,3340.9,3340.5,1.185]
[1735621893659,0.29984,3340.6,3340.5,1.185]
[1735621893962,0.29982,3340.8,3340.3,41.7048]
[1735621894148,0.8248,3340.5,3340.3,41.7048]
[1735621894348,0.29985,3340.4,3340.3,41.7048]
[1735621894552,0.8248,3340.5,3340.3,0.9048]
[1735621894761,0.8248,3340.5,3340.3,1.20466]
[1735621894957,0.29984,3340.6,3340.3,0.9048]
[1735621895159,0.29984,3340.6,3340.3,1.20466]
[1735621895761,0.8205,3340.8,3340.3,0.9048]
[1735621896063,0.8205,3340.8,3340.4,0.29985]
[1735621896064,1.12032,3340.8,3340.4,0.29985]
[1735621896359,0.29984,3340.7,3340.3,2.10496]
[1735621896562,0.29984,3340.6,3340.3,1.8051]
[1735621896759,0.29984,3340.6,3340.3,3.28996]
[1735621896950,0.29985,3340.5,3340.3,2.0898]
[1735621897155,0.29985,3340.4,3340.3,0.9048]
[1735621899258,0.29984,3340.6,3340.3,0.9048]
[1735621899566,0.29985,3340.5,3340.3,0.9048]
[1735621899855,3.50763,3340.7,3340.4,0.29985]
[1735621901359,3.50763,3340.7,3340.5,0.29984]
[1735621901763,3.2078,3340.7,3340.4,0.29985]
[1735621902761,3.50763,3340.7,3340.4,0.29985]
[1735621903353,3.50763,3340.7,3340.5,40.8]
[1735621903757,3.50763,3340.7,3340.4,0.29985]
[1735621904355,3.50763,3340.7,3340.5,1.07747695]